bitfinex/quotes_SOLUSD_20240711
["timestamp","ask_amount","ask_price","bid_price","bid_amount"]
[1720695862963,18.4176,143.52,143.47,41.45]
[1720695863175,11.45,143.52,143.48,45.0]
[1720695864492,6.9672,143.53,143.48,45.0]
[1720695864493,11.45,143.51,143.48,45.0]
[1720695864999,18.4183,143.51,143.48,45.0]
[1720695865172,11.45,143.5,143.48,45.0]
[1720695865484,11.45,143.49,143.42,21.4458]
[1720695865667,11.45,143.49,143.45,30.0]
[1720695867001,11.45,143.49,143.46,45.0]
[1720695867890,15.6885,143.53,143.46,45.0]
[1720695868096,11.45,143.5,143.46,45.0]
[1720695873482,6.9682,143.51,143.46,45.0]
[1720695873483,11.45,143.49,143.46,45.0]
[1720695877699,11.45,143.48,143.46,45.0]
[1720695878000,11.45,143.47,143.46,45.0]
[1720695878988,11.45,143.48,143.46,45.0]
[1720695882797,11.45,143.48,143.46,44.1463]
[1720695883584,11.45,143.47,143.46,44.1463]
[1720695886315,6.9677,143.52,143.47,6.5464]
[1720695886495,11.45,143.52,143.48,56.45]
[1720695886811,11.45,143.52,143.48,75.0]
[1720695887315,11.45,143.51,143.48,75.0]
[1720695887493,11.45,143.51,143.48,45.0]
[1720695889813,11.45,143.5,143.48,45.0]
[1720695890309,11.45,143.5,143.47,45.0]
[1720695891693,2.81126411,143.54,143.44,11.1697]
[1720695891694,11.45,143.49,143.44,22.6197]
[1720695891905,11.45,143.49,143.45,30.0]
[1720695892113,11.45,143.49,143.45,41.45]
[1720695892623,11.45,143.5,143.45,41.45]
[1720695893097,11.45,143.5,143.46,45.0]
[1720695893510,6.9683,143.51,143.46,45.0]
[1720695893716,32.7273,143.55,143.45,41.45]
[1720695893717,11.45,143.5,143.45,41.45]
[1720695893919,11.45,143.5,143.46,45.0]
[1720695894417,11.45,143.51,143.46,56.45]
[1720695894720,6.9673,143.53,143.46,56.45]
[1720695895095,18.02570905,143.55,143.46,45.0]
[1720695895296,15.3113,143.55,143.49,11.45]
[1720695895508,11.45,143.54,143.5,45.0]
[1720695895717,15.5471,143.58,143.51,1.23566128]
[1720695896025,6.9648,143.58,143.52,1.37869289]
[1720695896193,6.9646,143.59,143.52,57.82869289]
[1720695896398,11.45,143.57,143.52,57.82869289]
[1720695897218,11.45,143.56,143.52,1.37869289]
[1720695897532,11.45,143.56,143.52,76.37869289]
[1720695897697,11.45,143.54,143.52,45.0]
[1720695897900,11.45,143.53,143.46,6.0381]
[1720695898102,15.4166,143.55,143.46,6.0381]
[1720695898103,11.45,143.49,143.46,6.0381]
[1720695898302,11.45,143.49,143.48,30.0]
[1720695898509,11.45,143.49,143.45,4.5218]
[1720695899123,11.45,143.49,143.45,15.9718]
[1720695900021,11.45,143.49,143.46,45.0]
[1720695900614,6.9677,143.52,143.46,45.0]
[1720695903723,6.9684,143.51,143.46,45.0]
[1720695906011,6.9678,143.52,143.46,45.0]
[1720695906519,6.9681,143.51,143.46,45.0]
[1720695908726,6.9687,143.5,143.46,45.0]
[1720695909609,6.9683,143.51,143.46,45.0]
[1720695911633,6.969,143.5,143.42,4.5218]
[1720695911838,6.969,143.5,143.43,30.0]
[1720695912134,6.9682,143.51,143.43,30.0]
[1720695913020,6.9682,143.51,143.44,45.0]
[1720695913832,6.9682,143.51,143.45,30.0]
[1720695914025,6.9682,143.51,143.46,45.0]
[1720695915526,6.9678,143.52,143.46,45.0]
[1720695915833,6.9678,143.52,143.47,1.38986702]
[1720695916622,6.9677,143.52,143.46,45.0]
[1720695918141,6.9677,143.52,143.47,30.0]
[1720695918439,6.9677,143.52,143.48,45.0]
[1720695918648,22.91,143.54,143.48,45.0]
[1720695918649,6.9673,143.53,143.48,45.0]
[1720695920348,22.383,143.55,143.48,75.0]
[1720695920719,15.4166,143.55,143.48,75.0]
[1720695921035,22.3828,143.55,143.48,75.0]
[1720695921424,6.9667,143.54,143.48,75.0]
[1720695922543,11.45,143.53,143.48,86.45]
[1720695926043,11.45,143.53,143.48,56.45]
[1720695927245,11.45,143.53,143.48,86.45]
[1720695928736,11.45,143.53,143.48,56.45]
[1720695929036,11.45,143.53,143.48,86.45]
[1720695931047,11.45,143.52,143.48,75.0]
[1720695931522,11.45,143.52,143.48,30.0]
[1720695931854,11.45,143.49,143.45,6.4117]
[1720695932156,11.45,143.49,143.46,30.0]
[1720695933357,11.45,143.48,143.46,30.0]
[1720695933729,11.45,143.48,143.43,11.45]
[1720695934040,11.45,143.47,143.44,30.0]
[1720695935435,15.8818,143.5,143.45,45.0]
[1720695935750,11.45,143.48,143.45,45.0]
[1720695935953,11.45,143.47,143.44,30.0]
[1720695937963,11.45,143.48,143.44,41.45]
[1720695938164,11.45,143.48,143.45,45.0]
[1720695939955,11.45,143.46,143.41,11.45]
[1720695940152,11.45,143.46,143.42,75.0]
[1720695942544,27.3318,143.5,143.42,75.0]
[1720695942545,11.45,143.45,143.42,75.0]
[1720695943144,6.9697,143.48,143.42,75.0]
[1720695943354,11.45,143.46,143.42,75.0]
[1720695943763,11.45,143.45,143.42,75.0]
[1720695943939,11.45,143.45,143.42,45.0]
[1720695944137,11.45,143.45,143.41,45.0]
[1720695944538,11.45,143.46,143.41,56.45]
[1720695945865,11.45,143.46,143.39,4.5218]
[1720695945866,11.45,143.44,143.39,0.77095069]
[1720695946032,11.45,143.43,143.4,30.77089692]
[1720695946863,11.45,143.43,143.4,0.77089692]
[1720695947040,11.45,143.43,143.4,45.77089692]
[1720695948439,11.45,143.43,143.39,45.0]
[1720695948740,11.45,143.43,143.4,0.87427285]
[1720695950669,11.45,143.42,143.4,0.87427285]
[1720695953650,11.45,143.41,143.4,0.87427285]
[1720695953852,11.45,143.41,143.39,45.87427285]
[1720695954067,11.45,143.42,143.39,0.87427285]
[1720695956267,6.9715,143.44,143.39,0.87427285]
[1720695956456,11.45,143.42,143.39,0.87427285]
[1720695957251,11.45,143.4,143.39,0.87427285]
[1720695957484,11.45,143.4,143.38,45.0]
[1720695958480,11.45,143.41,143.38,45.0]
[1720695958708,11.45,143.4,143.37,45.0]
[1720695958860,6.9724,143.43,143.37,45.0]
[1720695959061,11.45,143.4,143.37,45.0]
[1720695960867,6.9724,143.43,143.37,45.0]
[1720695961062,11.45,143.41,143.37,45.0]
[1720695961381,11.45,143.41,143.38,30.0]
[1720695961578,11.45,143.41,143.39,45.0]
[1720695962478,11.45,143.41,143.39,46.39456522]
[1720695962688,6.972,143.43,143.4,1.39456445]
[1720695962889,18.422,143.43,143.4,1.39456445]
[1720695963185,11.45,143.42,143.4,1.39456445]
[1720695967684,6.972,143.43,143.4,1.39456445]
[1720695967685,11.45,143.41,143.4,1.39456445]
[1720695967893,6.972,143.43,143.4,1.39456445]
[1720695968184,11.45,143.42,143.4,1.39456445]
[1720695970193,18.4226,143.42,143.4,1.39456445]
[1720695972293,11.45,143.41,143.39,46.39449047]
[1720695972590,18.423,143.41,143.39,46.39449047]
[1720695972795,18.423,143.41,143.39,45.0]
[1720695974988,11.45,143.41,143.39,45.0]
[1720695977469,18.423,143.41,143.39,45.0]
[1720695978192,11.45,143.41,143.39,45.0]
[1720695979096,6.9726,143.42,143.39,45.0]
[1720695979395,11.45,143.41,143.39,45.0]
[1720695979598,11.45,143.41,143.4,45.0]
[1720695979895,11.45,143.41,143.38,45.0]
[1720695980074,11.45,143.41,143.39,30.0]
[1720695980275,11.45,143.41,143.4,45.0]
[1720695982683,18.423,143.41,143.4,45.0]
[1720695983302,18.423,143.41,143.36,11.45]
[1720695983500,18.423,143.41,143.37,75.0]
[1720695984874,11.45,143.4,143.37,75.0]
[1720695986102,11.45,143.4,143.37,45.0]
[1720695986280,11.45,143.4,143.36,45.0]
[1720695987899,6.9725,143.42,143.36,45.0]
[1720695988088,11.45,143.4,143.36,45.0]
[1720695988477,6.9725,143.42,143.37,30.0]
[1720695988800,11.45,143.41,143.38,45.0]
[1720695988981,18.423,143.41,143.38,45.0]
[1720695989384,6.973,143.41,143.38,45.0]
[1720695989583,18.423,143.41,143.38,45.0]
[1720695990407,11.45,143.4,143.38,45.0]
[1720695993903,18.423,143.41,143.38,45.0]
[1720695995301,18.423,143.41,143.37,45.0]
[1720695996283,16.5788,143.45,143.37,56.45]
[1720695996483,11.45,143.42,143.37,56.45]
[1720695997587,11.45,143.41,143.37,45.0]
[1720695998994,16.5788,143.45,143.37,45.0]
[1720695999208,11.45,143.42,143.37,56.45]
[1720695999586,6.9723,143.43,143.38,41.45]
[1720695999907,6.9723,143.43,143.39,45.0]
[1720696000094,18.4223,143.43,143.4,1.39336767]
[1720696000489,11.45,143.41,143.39,45.0]
[1720696000890,11.45,143.41,143.39,46.39458049]
[1720696001192,11.45,143.42,143.4,1.39458319]
[1720696002816,11.45,143.41,143.39,45.0]
[1720696004292,18.4225,143.42,143.39,45.0]
[1720696005010,11.45,143.42,143.39,45.0]
[1720696005890,18.4225,143.42,143.39,45.0]
[1720696006187,11.45,143.42,143.38,45.0]
[1720696006392,18.4221,143.43,143.38,56.45]
[1720696006609,6.9716,143.44,143.38,56.45]
[1720696006804,16.5788,143.45,143.39,1.39437968]
[1720696007017,23.5502,143.45,143.4,1.39434487]
[1720696007204,6.9706,143.46,143.41,11.45]
[1720696007392,6.9706,143.46,143.42,57.84409368]
[1720696007706,18.4202,143.47,143.43,1.3940956]
[1720696008090,18.23677212,143.49,143.43,1.3940956]
[1720696008293,18.4208,143.46,143.43,1.3940956]
[1720696008913,18.421,143.45,143.42,45.0]
[1720696009214,18.421,143.45,143.41,45.0]
[1720696009396,11.45,143.44,143.42,30.0]
[1720696009600,11.45,143.43,143.42,30.0]
[1720696009995,18.4216,143.44,143.42,30.0]
[1720696010394,18.4216,143.44,143.39,11.45]
[1720696010591,18.4216,143.44,143.4,30.0]
[1720696011519,18.4211,143.45,143.41,45.0]
[1720696012601,18.4216,143.44,143.41,45.0]
[1720696013005,18.4216,143.44,143.4,45.0]
[1720696013319,11.45,143.44,143.4,45.0]
[1720696014228,11.45,143.44,143.41,1.38914983]
[1720696014402,11.45,143.46,143.41,1.38914983]
[1720696014595,11.45,143.46,143.41,12.83914983]
[1720696014795,11.45,143.47,143.42,56.45]
[1720696015107,26.9427,143.49,143.44,11.45]
[1720696015312,26.9427,143.49,143.45,1.3887625]
[1720696015513,15.4927,143.49,143.46,1.38866569]
[1720696015690,23.29,143.53,143.46,12.83866569]
[1720696015886,11.45,143.51,143.47,45.0]
[1720696016118,11.45,143.52,143.48,1.39361822]
[1720696016328,34.74,143.53,143.49,1.39352114]
[1720696016821,6.9677,143.52,143.49,1.39352114]
[1720696017503,18.4182,143.51,143.47,45.0]
[1720696018110,11.45,143.49,143.42,10.7825]
[1720696018411,11.45,143.5,143.45,11.45]
[1720696018600,16.3227,143.53,143.48,11.45]
[1720696018917,34.74,143.53,143.48,11.45]
[1720696019302,6.9677,143.52,143.48,11.45]
[1720696019703,18.4177,143.52,143.47,11.45]
[1720696019903,6.9682,143.51,143.48,45.0]
[1720696020214,11.45,143.5,143.46,11.45]
[1720696020396,18.4187,143.5,143.47,45.0]
[1720696020597,6.9687,143.5,143.47,45.0]
[1720696020818,6.9687,143.5,143.46,11.45]
[1720696021498,11.45,143.52,143.47,11.45]
[1720696021794,27.7727,143.53,143.48,11.45]
[1720696021994,16.3227,143.53,143.49,56.45]
[1720696022923,23.2899,143.53,143.49,56.45]
[1720696024114,6.9677,143.52,143.49,45.0]
[1720696024297,6.9681,143.51,143.49,45.0]
[1720696024498,16.3227,143.53,143.43,50.95]
[1720696024716,18.4185,143.51,143.46,11.45]
[1720696024897,18.4185,143.51,143.47,45.0]
[1720696025095,18.4187,143.5,143.42,10.7825]
[1720696025295,18.4187,143.5,143.45,11.45]
[1720696025503,18.4182,143.51,143.46,11.45]
[1720696025808,18.4177,143.52,143.47,11.45]
[1720696026008,18.4177,143.52,143.48,1.39365291]
[1720696026240,18.4183,143.51,143.46,11.45]
[1720696026512,18.4188,143.5,143.45,11.45]
[1720696026692,18.4182,143.51,143.46,11.45]
[1720696027207,6.9682,143.51,143.47,11.45]
[1720696027519,6.9686,143.5,143.46,11.45]
[1720696027719,11.45,143.51,143.47,45.0]
[1720696027924,11.45,143.5,143.45,11.45]
[1720696028119,18.4189,143.5,143.46,45.0]
[1720696028618,6.9689,143.5,143.46,45.0]
[1720696028822,6.9689,143.5,143.46,56.45]
[1720696029202,18.4189,143.5,143.46,45.0]
[1720696031207,6.9689,143.5,143.46,45.0]
[1720696031511,18.4189,143.5,143.46,45.0]
[1720696031714,18.4199,143.48,143.38,10.6002]
[1720696032025,33.4597,143.48,143.43,11.45]
[1720696032232,11.45,143.46,143.4,30.0]
[1720696032402,11.45,143.46,143.41,11.45]
[1720696033602,11.45,143.46,143.42,45.0]
[1720696033803,18.4203,143.47,143.42,11.45]
[1720696034014,11.45,143.47,143.42,11.45]
[1720696034216,11.45,143.47,143.43,11.45]
[1720696034404,26.4898,143.48,143.43,11.45]
[1720696035112,26.4898,143.48,143.44,45.0]
[1720696035519,11.45,143.47,143.44,45.0]
[1720696035816,6.9701,143.47,143.41,11.45]
[1720696036023,11.45,143.46,143.42,45.0]
[1720696036407,11.45,143.45,143.42,45.0]
[1720696037025,11.45,143.45,143.41,45.0]
[1720696037608,18.421,143.45,143.41,45.0]
[1720696038226,11.45,143.44,143.41,45.0]
[1720696038527,11.45,143.44,143.4,45.0]
[1720696040428,15.0398,143.48,143.4,45.0]
[1720696040735,11.45,143.46,143.42,11.45]
[1720696041120,22.0095,143.48,143.42,11.45]
[1720696041321,11.45,143.46,143.42,11.45]
[1720696041627,11.45,143.46,143.43,1.3889318]
[1720696044113,11.45,143.47,143.43,46.3889318]
[1720696044508,15.0398,143.48,143.43,57.8389318]
[1720696044509,33.4594,143.48,143.43,57.8389318]
[1720696044811,33.4594,143.48,143.44,1.38883517]
[1720696047633,6.9701,143.47,143.44,1.38883517]
[1720696048418,6.9706,143.46,143.44,1.38883517]
[1720696050739,18.4201,143.47,143.43,45.0]
[1720696052117,22.0095,143.48,143.43,45.0]
[1720696052314,33.4595,143.48,143.44,11.45]
[1720696053435,6.9688,143.5,143.45,11.45]
[1720696053628,6.9688,143.5,143.46,45.0]
[1720696053931,6.9688,143.5,143.46,56.45]
[1720696054342,6.9692,143.49,143.46,45.0]
[1720696054917,6.9687,143.5,143.46,56.45]
[1720696055433,18.4183,143.51,143.46,56.45]
[1720696055735,6.9683,143.51,143.46,56.45]
[1720696055932,18.4183,143.51,143.47,1.39243411]
[1720696056130,23.3967,143.52,143.47,1.39243411]
[1720696056343,34.8467,143.52,143.47,12.84243411]
[1720696056540,34.8467,143.52,143.48,45.0]
[1720696056730,6.9681,143.51,143.49,1.39224018]
[1720696058244,34.8468,143.52,143.49,1.39224018]
[1720696058742,6.9686,143.5,143.48,45.0]
[1720696059735,6.9683,143.51,143.47,45.0]
[1720696060843,6.9683,143.51,143.47,56.45]
[1720696062221,18.4183,143.51,143.47,45.0]
[1720696062446,18.4183,143.51,143.47,56.45]
[1720696062624,18.4183,143.51,143.47,45.0]
[1720696062822,18.4183,143.51,143.47,56.45]
[1720696063766,6.9683,143.51,143.47,56.45]
[1720696064947,6.9687,143.5,143.47,45.0]
[1720696065129,6.9687,143.5,143.46,11.45]
[1720696066323,34.8467,143.52,143.47,12.8384432]
[1720696066649,23.3967,143.52,143.48,57.83834642]
[1720696066842,23.3967,143.52,143.48,56.45]
[1720696067050,16.429,143.52,143.49,1.38786298]
[1720696067236,16.429,143.52,143.49,12.83786298]
[1720696067549,16.429,143.52,143.5,11.45]
[1720696067753,16.429,143.52,143.49,12.83786298]
[1720696068439,18.4168,143.54,143.49,12.83786298]
[1720696068635,18.4168,143.54,143.49,1.38786298]
[1720696068841,6.9667,143.54,143.51,11.45]
[1720696069139,6.9667,143.54,143.5,11.45]
[1720696069947,6.9673,143.53,143.48,45.0]
[1720696070154,6.9673,143.53,143.49,11.45]
[1720696070538,6.9676,143.52,143.49,11.45]
[1720696071449,6.9676,143.52,143.5,30.0]
[1720696071940,18.4173,143.53,143.5,30.0]
[1720696072449,6.9667,143.54,143.5,30.0]
[1720696072839,6.9667,143.54,143.5,41.45]
[1720696073036,36.66023059,143.55,143.51,1.39346209]
[1720696074858,33.9614,143.55,143.51,1.39346209]
[1720696075151,33.9614,143.55,143.51,31.39346209]
[1720696075359,6.9667,143.54,143.51,30.0]
[1720696076548,6.9667,143.54,143.5,11.45]
[1720696076758,18.4167,143.54,143.49,11.45]
[1720696076959,18.4167,143.54,143.5,75.0]
[1720696077955,18.4167,143.54,143.5,30.0]
[1720696079262,6.9667,143.54,143.5,41.45]
[1720696080462,33.9614,143.55,143.5,41.45]
[1720696080766,33.9614,143.55,143.51,1.2910283]
[1720696080960,33.9614,143.55,143.51,42.7410283]
[1720696081140,33.9614,143.55,143.51,41.45]
[1720696081538,6.9667,143.54,143.51,41.45]
[1720696082058,33.9614,143.55,143.52,1.293654]
[1720696082255,15.5451,143.55,143.52,76.293654]
[1720696082857,22.5113,143.55,143.52,76.293654]
[1720696083745,22.5113,143.55,143.52,30.0]
[1720696083952,6.9671,143.53,143.52,30.0]
[1720696084266,6.9671,143.53,143.4,10.8132]
[1720696084267,6.4034,143.52,143.4,10.8132]
[1720696084470,6.9697,143.48,143.44,11.45]
[1720696084762,18.4197,143.48,143.44,11.45]
[1720696085166,6.9701,143.47,143.42,30.0]
[1720696085337,6.9701,143.47,143.43,11.45]
[1720696085537,6.9701,143.47,143.45,30.0]
[1720696085756,6.9696,143.48,143.45,30.0]
[1720696085967,18.4196,143.48,143.45,30.0]
[1720696086281,18.4196,143.48,143.44,11.45]
[1720696086767,6.9696,143.48,143.44,11.45]
[1720696086949,18.4196,143.48,143.44,11.45]
[1720696088073,6.9696,143.48,143.44,11.45]
[1720696088272,18.4196,143.48,143.44,11.45]
[1720696088666,6.9696,143.48,143.44,11.45]
[1720696088966,18.4196,143.48,143.44,11.45]
[1720696089165,6.9696,143.48,143.44,11.45]
[1720696089367,18.4196,143.48,143.44,11.45]
[1720696089665,6.9696,143.48,143.44,11.45]
[1720696089865,18.4196,143.48,143.44,11.45]
[1720696090252,6.9696,143.48,143.44,11.45]
[1720696090466,18.4196,143.48,143.44,11.45]
[1720696092158,6.9696,143.48,143.44,11.45]
[1720696092363,18.4196,143.48,143.44,11.45]
[1720696093043,6.9696,143.48,143.43,11.45]
[1720696093245,11.45,143.47,143.44,45.0]
[1720696093469,6.9696,143.48,143.44,45.0]
[1720696093649,11.45,143.47,143.44,45.0]
[1720696093854,6.9696,143.48,143.44,45.0]
[1720696094162,11.45,143.47,143.44,45.0]
[1720696094560,6.9692,143.49,143.44,45.0]
[1720696094759,11.45,143.48,143.44,45.0]
[1720696094954,11.45,143.48,143.44,56.45]
[1720696095153,6.9692,143.49,143.44,56.45]
[1720696095355,15.669,143.5,143.45,11.45]
[1720696095670,27.119,143.5,143.46,45.0]
[1720696095863,15.669,143.5,143.46,45.0]
[1720696096067,27.119,143.5,143.46,45.0]
[1720696096262,11.45,143.49,143.46,45.0]
[1720696096761,11.45,143.49,143.45,45.0]
[1720696097272,6.9691,143.49,143.45,45.0]
[1720696097571,18.4191,143.49,143.45,45.0]
[1720696098787,6.359,143.48,143.39,20.95]
[1720696098959,11.45,143.46,143.41,11.45]
[1720696099155,13.3287,143.48,143.41,11.45]
[1720696099464,11.45,143.46,143.42,11.45]
[1720696099657,13.3287,143.48,143.42,11.45]
[1720696099859,11.45,143.46,143.42,11.45]
[1720696100173,11.45,143.46,143.43,45.0]
[1720696100875,11.45,143.45,143.4,30.0]
[1720696101061,18.4205,143.46,143.41,11.45]
[1720696102149,18.4205,143.46,143.42,45.0]
[1720696103670,11.45,143.46,143.42,45.0]
[1720696103874,6.9702,143.47,143.42,45.0]
[1720696104072,11.45,143.46,143.42,56.45]
[1720696104670,6.9702,143.47,143.42,56.45]
[1720696104876,11.45,143.46,143.42,56.45]
[1720696105177,6.9702,143.47,143.42,56.45]
[1720696105378,11.45,143.46,143.42,56.45]
[1720696105565,6.9702,143.47,143.42,56.45]
[1720696105759,18.4202,143.47,143.42,56.45]
[1720696106290,6.9702,143.47,143.42,56.45]
[1720696106453,11.45,143.43,143.4,30.0]
[1720696106652,6.9711,143.45,143.4,30.0]
[1720696106850,11.45,143.44,143.4,41.45]
[1720696107076,6.9716,143.44,143.4,41.45]
[1720696107262,6.9716,143.44,143.41,11.45]
[1720696107467,6.972,143.44,143.41,11.45]
[1720696107867,6.9721,143.43,143.41,11.45]
[1720696108364,6.9717,143.44,143.41,11.45]
[1720696109281,6.9717,143.44,143.42,0.83288466]
[1720696110672,6.9717,143.44,143.42,12.28288466]
[1720696110872,6.9717,143.44,143.42,11.45]
[1720696112277,6.9717,143.44,143.41,11.45]
[1720696112578,6.972,143.43,143.42,0.8346694]
[1720696112784,6.972,143.43,143.41,11.45]
[1720696112959,6.9716,143.44,143.42,1.39384756]
[1720696113798,6.972,143.43,143.42,1.39384756]
[1720696114379,6.972,143.43,143.41,46.39384793]
[1720696114574,6.9725,143.42,143.41,12.84384793]
[1720696114876,6.972,143.43,143.41,11.45]
[1720696115596,16.5066,143.46,143.42,12.84287622]
[1720696115796,16.5066,143.46,143.43,12.8427791]
[1720696115797,6.971,143.45,143.43,12.8427791]
[1720696116098,6.971,143.45,143.43,11.45]
[1720696116272,6.971,143.45,143.42,11.45]
[1720696116467,6.9715,143.44,143.38,1.39419144]
[1720696116668,6.9715,143.44,143.41,11.45]
[1720696116893,6.9715,143.44,143.42,1.39380262]
[1720696117087,6.9715,143.44,143.42,12.84380262]
[1720696117270,6.9715,143.44,143.41,11.45]
[1720696117591,6.9715,143.44,143.42,1.39360825]
[1720696117769,6.9712,143.45,143.42,12.84360825]
[1720696117969,6.9712,143.45,143.42,11.45]
[1720696118176,23.4773,143.46,143.43,1.39331676]
[1720696118371,23.4773,143.46,143.43,57.84331676]
[1720696118582,23.4773,143.46,143.44,1.39321961]
[1720696119370,23.4773,143.46,143.43,45.0]
[1720696119565,23.4773,143.46,143.43,46.39398123]
[1720696120175,6.971,143.45,143.43,1.39398123]
[1720696120589,6.971,143.45,143.42,11.45]
[1720696121887,6.971,143.45,143.4,1.39398123]
[1720696122080,6.971,143.45,143.4,46.39398123]
[1720696122386,6.971,143.45,143.42,11.45]
[1720696123194,6.972,143.43,143.4,46.39398123]
[1720696123389,6.9716,143.44,143.41,11.45]
[1720696123577,16.5066,143.46,143.42,12.84378683]
[1720696123886,16.5066,143.46,143.43,1.39368995]
[1720696124093,23.4771,143.46,143.41,1.39369025]
[1720696124386,23.4771,143.46,143.42,11.45]
[1720696124590,23.4771,143.46,143.43,1.39349641]
[1720696130695,6.9714,143.45,143.41,1.39349641]
[1720696130892,6.9714,143.45,143.42,11.45]
[1720696132888,6.9714,143.45,143.43,1.39330209]
[1720696133404,23.4772,143.46,143.43,1.39330209]
[1720696134296,23.4772,143.46,143.43,12.84330209]
[1720696134499,23.4772,143.46,143.43,11.45]
[1720696135590,6.9711,143.45,143.43,11.45]
[1720696135980,6.9711,143.45,143.42,11.45]
[1720696136381,6.9711,143.45,143.42,12.84310808]
[1720696138405,23.4772,143.46,143.42,12.84310808]
[1720696139087,23.4772,143.46,143.43,12.84301119]
[1720696140213,23.4772,143.46,143.43,11.45]
[1720696141400,16.5372,143.49,143.45,11.45]
[1720696141592,16.5372,143.49,143.47,11.45]
[1720696142797,16.5372,143.49,143.44,1.39386743]
[1720696142798,23.5064,143.49,143.44,1.39386743]
[1720696143004,23.5064,143.49,143.45,30.0]
[1720696143188,6.9686,143.5,143.46,1.3936731]
[1720696143393,6.9686,143.5,143.46,46.3936731]
[1720696143825,6.9691,143.49,143.46,46.3936731]
[1720696144104,6.9696,143.48,143.45,30.0]
[1720696144289,6.9696,143.48,143.46,11.45]
[1720696144902,6.9691,143.49,143.46,11.45]
[1720696145113,6.9691,143.49,143.47,11.45]
[1720696146893,6.9691,143.49,143.4,42.7912]
[1720696147098,6.9696,143.48,143.42,30.0]
[1720696147295,6.9696,143.48,143.45,11.45]
[1720696148008,11.45,143.5,143.45,11.45]
[1720696148305,6.9693,143.49,143.46,11.45]
[1720696150719,6.9693,143.49,143.45,11.45]
[1720696152309,6.9696,143.48,143.42,30.0]
[1720696152513,6.9696,143.48,143.45,11.45]
[1720696152690,6.9693,143.49,143.45,11.45]
[1720696153090,6.9693,143.49,143.46,11.45]
[1720696154813,11.45,143.5,143.43,45.0]
[1720696154814,6.9696,143.48,143.43,45.0]
[1720696154998,6.9696,143.48,143.45,11.45]
[1720696155613,6.9696,143.48,143.44,11.45]
[1720696155823,6.9693,143.49,143.45,11.45]
[1720696159595,6.9693,143.49,143.44,1.39179051]
[1720696159796,6.9693,143.49,143.45,11.45]
[1720696161424,18.4188,143.5,143.45,11.45]
[1720696162310,6.9692,143.49,143.45,11.45]
[1720696165325,6.9692,143.49,143.46,11.45]
[1720696167403,6.9687,143.5,143.45,11.45]
[1720696167609,6.9687,143.5,143.43,45.0]